bitfinex/quotes_BTCUSD_20250515
["timestamp","ask_amount","ask_price","bid_price","bid_amount"]
[1747322231608,0.24744558,102300.0,102290.0,0.14318386]
[1747322231851,0.00977641,102280.0,102270.0,0.62438292]
[1747322232102,0.00977641,102280.0,102270.0,1.07147007]
[1747322232314,0.00977641,102280.0,102270.0,1.08615374]
[1747322232934,0.00977622,102280.0,102270.0,1.08615326]
[1747322233160,0.01955272,102280.0,102270.0,1.08815326]
[1747322233391,0.24994805,102280.0,102270.0,1.07059892]
[1747322233609,0.24994805,102280.0,102270.0,1.08037695]
[1747322233838,0.24659533,102280.0,102270.0,0.6612992]
[1747322234059,0.24659533,102280.0,102270.0,0.68085479]
[1747322234504,0.24659533,102280.0,102270.0,0.1013094]
[1747322234772,0.24659533,102280.0,102270.0,0.004]
[1747322236334,0.25566351,102280.0,102270.0,0.004]
[1747322236540,0.59566351,102280.0,102270.0,0.004]
[1747322237264,0.59566351,102280.0,102270.0,0.002]
[1747322238236,0.24101571,102260.0,102250.0,0.23493808]
[1747322238515,0.00977832,102260.0,102250.0,0.38565425]
[1747322238754,0.23469432,102260.0,102250.0,0.4052128]
[1747322238991,0.24447302,102260.0,102250.0,0.38565368]
[1747322239245,0.02933592,102260.0,102250.0,0.37587421]
[1747322239491,0.00977813,102260.0,102250.0,0.38565349]
[1747322239743,0.04472319,102270.0,102260.0,0.23469432]
[1747322239987,0.22489372,102270.0,102260.0,0.34442174]
[1747322240229,0.22489372,102270.0,102260.0,0.35420025]
[1747322240687,0.01955501,102270.0,102260.0,0.35420025]
[1747322240932,0.02933285,102270.0,102260.0,0.36397857]
[1747322241273,0.03911079,102270.0,102260.0,0.36397857]
[1747322241274,0.01955492,102270.0,102260.0,0.36497857]
[1747322241480,0.23078691,102280.0,102270.0,0.21511626]
[1747322241481,0.23394001,102280.0,102270.0,0.21511626]
[1747322241695,0.22416351,102280.0,102270.0,0.25874538]
[1747322241910,0.01884468,102280.0,102270.0,0.37560979]
[1747322242112,0.00906818,102280.0,102270.0,0.72113506]
[1747322242318,0.0188444,102280.0,102270.0,1.06113506]
[1747322242519,0.0256258,102300.0,102290.0,0.0293275]
[1747322242717,0.04531945,102300.0,102290.0,0.25682163]
[1747322242932,0.015405,102320.0,102310.0,0.2248058]
[1747322243115,0.015405,102320.0,102310.0,1.00764047]
[1747322243116,0.03495008,102320.0,102310.0,1.00764047]
[1747322243313,0.015405,102320.0,102310.0,1.00764047]
[1747322243540,0.2108702,102320.0,102310.0,0.65234166]
[1747322243747,0.2492867,102320.0,102310.0,0.35597469]
[1747322243954,0.2647867,102320.0,102310.0,0.37552244]
[1747322244153,0.0693215,102320.0,102310.0,0.39506971]
[1747322244382,0.0538214,102320.0,102310.0,0.39506971]
[1747322244590,0.04404834,102320.0,102310.0,0.39506971]
[1747322244789,0.0538214,102320.0,102310.0,0.39506971]
[1747322245187,0.04404834,102320.0,102310.0,0.39506971]
[1747322245467,0.05382131,102320.0,102310.0,0.39506971]
[1747322245750,0.05859437,102320.0,102310.0,0.39506971]
[1747322246100,0.04882131,102320.0,102310.0,0.39506971]
[1747322246307,0.03904834,102320.0,102310.0,0.39506971]
[1747322246913,0.04882131,102320.0,102310.0,0.39506971]
[1747322247118,0.03904834,102320.0,102310.0,0.39506971]
[1747322247325,0.02927547,102320.0,102310.0,0.39506971]
[1747322247749,0.01950288,102320.0,102310.0,0.74059498]
[1747322248177,0.01950288,102320.0,102310.0,0.39506971]
[1747322248347,0.01950288,102320.0,102310.0,0.74059498]
[1747322248545,0.02927537,102320.0,102310.0,0.74059498]
[1747322250400,0.03904796,102320.0,102310.0,0.74059498]
[1747322250972,0.04882064,102320.0,102310.0,0.76442873]
[1747322251190,0.00424643,102320.0,102310.0,1.14996958]
[1747322251413,0.00424643,102320.0,102310.0,1.15996958]
[1747322251625,0.00424643,102320.0,102310.0,1.48996958]
[1747322251830,0.00424643,102320.0,102310.0,1.14444431]
[1747322252037,0.00977144,102330.0,102320.0,0.56478382]
[1747322252254,0.03956463,102340.0,102330.0,0.22476185]
[1747322252457,0.24476298,102340.0,102330.0,0.32207125]
[1747322252874,0.23499221,102340.0,102330.0,0.31229962]
[1747322253076,0.22522115,102340.0,102330.0,0.31229962]
[1747322253283,0.01025127,102340.0,102330.0,0.38524994]
[1747322253514,0.02002185,102340.0,102330.0,0.39502157]
[1747322253727,0.029793,102340.0,102330.0,0.38524984]
[1747322253941,0.03956425,102340.0,102330.0,0.38524984]
[1747322254161,0.23499125,102340.0,102330.0,0.37547821]
[1747322254366,0.2447626,102340.0,102330.0,0.38724994]
[1747322254570,0.03908462,102340.0,102330.0,0.39702157]
[1747322254778,0.03908462,102340.0,102330.0,0.39902157]
[1747322255193,0.23451162,102340.0,102330.0,0.39902157]
[1747322255393,0.2442822,102340.0,102330.0,0.38924994]
[1747322255561,0.03908385,102340.0,102330.0,0.38924994]
[1747322255768,0.2442822,102340.0,102330.0,0.38924994]
[1747322255970,0.2442822,102340.0,102330.0,0.37947821]
[1747322256173,0.24961162,102340.0,102330.0,0.37947821]
[1747322256347,0.24961162,102340.0,102330.0,0.38924984]
[1747322256527,0.03908462,102340.0,102330.0,0.38924984]
[1747322256730,0.23451162,102340.0,102330.0,0.38924984]
[1747322256936,0.2302696,102340.0,102330.0,0.05740677]
[1747322257195,0.2465696,102340.0,102330.0,0.004]
[1747322263796,0.2556529,102340.0,102330.0,0.004]
[1747322264824,0.27915409,102340.0,102330.0,0.004]
[1747322265246,0.71646349,102340.0,102330.0,0.004]
[1747322265469,5.79100434,102340.0,102330.0,0.004]
[1747322265682,5.88831374,102340.0,102330.0,0.004]
[1747322266144,0.21501104,102320.0,102310.0,0.01]
[1747322266424,0.68272044,102320.0,102310.0,0.01]
[1747322267612,0.69180374,102320.0,102310.0,0.01]
[1747322268199,0.69180374,102320.0,102310.0,0.00934328]
[1747322270044,5.8132213,102320.0,102310.0,0.00934328]
[1747322270263,5.8232213,102320.0,102310.0,0.00934328]
[1747322271046,5.77634459,102320.0,102310.0,0.00934328]
[1747322271668,5.77734459,102320.0,102310.0,0.00934328]
[1747322272510,5.78034459,102320.0,102310.0,0.00934328]
[1747322273095,5.79533969,102320.0,102310.0,0.00934328]
[1747322273305,5.78533969,102320.0,102310.0,0.00934328]
[1747322273933,5.77079884,102320.0,102310.0,0.00934328]
[1747322274138,0.71079884,102320.0,102310.0,0.00934328]
[1747322274766,0.72079884,102320.0,102310.0,0.00934328]
[1747322275197,0.81810824,102320.0,102310.0,0.00934328]
[1747322276713,0.72079884,102320.0,102310.0,0.00934328]
[1747322278393,5.78533969,102320.0,102310.0,0.00934328]
[1747322278598,5.79533969,102320.0,102310.0,0.00934328]
[1747322279425,0.21509514,102280.0,102270.0,0.01]
[1747322280482,0.21509514,102280.0,102270.0,0.0423]
[1747322280686,0.01955291,102280.0,102270.0,0.32768915]
[1747322280901,0.22487174,102280.0,102270.0,0.32816993]
[1747322281654,0.23464882,102280.0,102270.0,0.33794739]
[1747322281856,0.23464882,102280.0,102270.0,0.32916993]
[1747322282074,0.23464882,102280.0,102270.0,0.31939228]
[1747322282075,0.22487241,102280.0,102270.0,0.31939228]
[1747322282283,0.21509571,102280.0,102270.0,0.31939228]
[1747322282500,0.19554165,102280.0,102270.0,0.08024916]
[1747322282730,0.19554165,102280.0,102270.0,0.0273804]
[1747322282932,0.19554165,102280.0,102270.0,0.0114804]
[1747322283155,0.19554165,102280.0,102270.0,0.0435804]
[1747322283404,0.19554165,102280.0,102270.0,0.0275804]
[1747322283574,0.19554165,102280.0,102270.0,0.0114804]
[1747322283770,0.19554165,102280.0,102270.0,0.03671994]
[1747322283978,0.19031165,102280.0,102270.0,0.03671994]
[1747322284180,0.19275607,102280.0,102270.0,0.0114804]
[1747322284386,0.19275624,102280.0,102270.0,0.0114804]
[1747322287441,0.22181165,102280.0,102270.0,0.0114804]
[1747322287943,0.31912105,102280.0,102270.0,0.0114804]
[1747322288156,0.65912105,102280.0,102270.0,0.0114804]
[1747322288362,5.7336619,102280.0,102270.0,0.0114804]
[1747322289027,5.7336619,102280.0,102270.0,0.00175474]
[1747322289244,5.74275929,102280.0,102270.0,0.00075474]
[1747322289455,5.73375929,102280.0,102270.0,0.00075474]
[1747322289689,5.83006869,102280.0,102270.0,0.00075474]
[1747322289910,5.84106869,102280.0,102270.0,0.00075474]
[1747322290372,5.84006869,102280.0,102270.0,0.00075474]
[1747322290607,5.84306869,102280.0,102270.0,0.00075474]
[1747322291034,5.84406869,102280.0,102270.0,0.00075474]
[1747322291416,5.84306869,102280.0,102270.0,0.00075474]
[1747322291635,5.84406869,102280.0,102270.0,0.00075474]
[1747322294886,6.53716869,102280.0,102270.0,0.00075474]
[1747322296754,6.44985929,102280.0,102270.0,0.00075474]
[1747322297191,6.09531844,102280.0,102270.0,0.00075474]
[1747322297602,6.44985929,102280.0,102270.0,0.00075474]
[1747322297772,6.44985929,102280.0,102250.0,0.01]
[1747322297773,0.2151372,102260.0,102250.0,0.01]
[1747322297972,5.84621306,102260.0,102250.0,0.01014418]
[1747322298512,5.86074663,102260.0,102250.0,0.01014418]
[1747322299075,5.86374663,102260.0,102250.0,0.01014418]
[1747322299278,5.86474663,102260.0,102250.0,0.01014418]
[1747322300195,5.85474663,102260.0,102250.0,0.01014418]
[1747322300403,5.84474663,102260.0,102250.0,0.01014418]
[1747322300818,5.87288057,102260.0,102250.0,0.01014418]
[1747322301605,5.86988057,102260.0,102250.0,0.01014418]
[1747322301795,5.87388057,102260.0,102250.0,0.01014418]
[1747322302042,5.77222102,102260.0,102250.0,0.01014418]
[1747322303073,5.83102102,102260.0,102250.0,0.01014418]
[1747322303884,5.84631627,102260.0,102250.0,0.01014418]
[1747322304768,5.90297806,102260.0,102250.0,0.01014418]
[1747322306615,5.87445021,102260.0,102250.0,0.01014418]
[1747322306858,5.97175961,102260.0,102250.0,0.01014418]
[1747322307264,5.94362567,102260.0,102250.0,0.01014418]
[1747322309713,6.63672567,102260.0,102250.0,0.01014418]
[1747322310545,6.64672567,102260.0,102250.0,0.01014418]
[1747322310971,6.09437542,102260.0,102250.0,0.01014418]
[1747322311189,6.08908017,102260.0,102250.0,0.01014418]
[1747322311396,6.09758371,102260.0,102250.0,0.01014418]
[1747322311602,6.43758371,102260.0,102250.0,0.01014418]
[1747322311807,5.39448371,102260.0,102250.0,0.01014418]
[1747322312028,0.34448371,102260.0,102250.0,0.04084418]
[1747322312244,0.68448371,102260.0,102250.0,0.01014418]
[1747322314468,5.85421648,102260.0,102250.0,0.01014418]
[1747322314680,5.87061648,102260.0,102250.0,0.01014418]
[1747322314870,5.89621648,102260.0,102250.0,0.01014418]
[1747322315138,5.88621648,102260.0,102250.0,0.01014418]
[1747322315596,5.87771294,102260.0,102250.0,0.01014418]
[1747322315808,6.57081294,102260.0,102250.0,0.01014418]
[1747322320814,6.58701294,102260.0,102250.0,0.01014418]
[1747322321352,6.57141294,102260.0,102250.0,0.01014418]
[1747322321514,6.59883049,102260.0,102250.0,0.01014418]
[1747322322121,6.61473049,102260.0,102250.0,0.01014418]
[1747322322975,6.67353049,102260.0,102250.0,0.01014418]
[1747322324354,6.66353049,102260.0,102250.0,0.01014418]
[1747322324550,6.55603857,102260.0,102250.0,0.01014418]
[1747322324782,6.54603857,102260.0,102250.0,0.01014418]
[1747322326227,6.55603857,102260.0,102250.0,0.01014418]
[1747322326431,6.54603857,102260.0,102250.0,0.01014418]
[1747322326581,6.55603857,102260.0,102250.0,0.01014418]
[1747322326782,6.64334797,102260.0,102250.0,0.01014418]
[1747322327844,6.65874797,102260.0,102250.0,0.01014418]
[1747322328790,6.67374797,102260.0,102250.0,0.01014418]
[1747322332142,0.62854118,102230.0,102220.0,0.001]
[1747322332365,5.91027825,102230.0,102220.0,0.00114423]
[1747322333044,5.85147825,102230.0,102220.0,0.00114423]
[1747322333255,5.85147825,102230.0,102220.0,0.00214423]
[1747322333593,5.85147825,102230.0,102220.0,0.00114423]
[1747322333927,5.85247825,102230.0,102220.0,0.00114423]
[1747322334357,5.87867825,102230.0,102220.0,0.00114423]
[1747322334762,5.86647825,102230.0,102220.0,0.00114423]
[1747322338397,5.89585325,102230.0,102220.0,0.00114423]
[1747322340592,0.73528473,102230.0,102220.0,0.03314423]
[1747322340806,0.70590973,102230.0,102220.0,0.03314423]
[1747322340994,5.78045058,102230.0,102220.0,0.01674423]
[1747322341229,5.86485058,102230.0,102220.0,0.00114423]
[1747322341435,5.88065058,102230.0,102220.0,0.00114423]
[1747322341642,5.97795998,102230.0,102220.0,0.00114423]
[1747322342045,0.22978328,102210.0,102200.0,0.001]
[1747322342282,5.38709268,102210.0,102200.0,0.001]
[1747322342840,5.41647368,102210.0,102200.0,0.001]
[1747322343100,5.47527368,102210.0,102200.0,0.001]
[1747322343394,5.49698014,102210.0,102200.0,0.004]
[1747322343948,5.49698014,102210.0,102200.0,0.003]
[1747322344148,5.49698014,102210.0,102200.0,0.001]
[1747322344364,5.47527368,102210.0,102200.0,0.001]
[1747322344918,5.57827368,102210.0,102200.0,0.001]
[1747322345128,5.47527368,102210.0,102200.0,0.001]
[1747322345945,5.49640692,102210.0,102200.0,0.001]
[1747322346545,0.39248507,102210.0,102200.0,0.0314]
[1747322347581,0.48979447,102210.0,102200.0,0.0314]
[1747322349430,0.33368507,102210.0,102200.0,0.0314]
[1747322351079,0.23637567,102210.0,102200.0,0.0314]
[1747322351987,0.57637567,102210.0,102200.0,0.0314]
[1747322358564,0.55524243,102210.0,102200.0,0.0314]
[1747322358929,0.21524243,102210.0,102200.0,0.0314]
[1747322359110,0.21524243,102210.0,102200.0,0.09151943]
[1747322359285,0.21524243,102210.0,102200.0,0.0314]
[1747322364435,0.21524291,102210.0,102200.0,0.22709471]
[1747322364639,0.21524291,102210.0,102200.0,0.23687944]
[1747322364840,0.20545933,102210.0,102200.0,0.0314]
[1747322366486,0.64276873,102210.0,102200.0,0.0164]
[1747322366729,0.74007813,102210.0,102200.0,0.001]
[1747322367797,0.64276873,102210.0,102200.0,0.001]
[1747322371962,0.65826873,102210.0,102200.0,0.001]
[1747322372524,0.64276873,102210.0,102200.0,0.001]
[1747322373867,0.20545933,102210.0,102200.0,0.0328]
[1747322374094,0.20545933,102210.0,102200.0,0.05760844]
[1747322374300,0.21524282,102210.0,102200.0,0.27287214]
[1747322374494,0.19578122,102230.0,102220.0,0.0318]
[1747322374693,0.29309062,102230.0,102220.0,0.0318]
[1747322375817,0.29609062,102230.0,102220.0,0.0318]
[1747322376022,0.19878122,102230.0,102220.0,0.2502039]
[1747322376224,0.19878122,102230.0,102220.0,0.05454748]
[1747322376523,0.20078122,102230.0,102220.0,0.05454748]
[1747322376892,0.20078122,102230.0,102220.0,0.0318]
[1747322377380,0.19878122,102230.0,102220.0,0.0318]
[1747322377558,0.19578122,102230.0,102220.0,0.0162]
[1747322377805,0.19678122,102230.0,102220.0,0.0162]
[1747322378244,0.19778122,102230.0,102220.0,0.0162]
[1747322378427,0.19678122,102230.0,102220.0,0.0162]
[1747322378763,0.67516853,102230.0,102220.0,0.0162]
[1747322378963,0.20543904,102220.0,102210.0,0.0303]
[1747322379208,0.20545914,102210.0,102200.0,0.0315]
[1747322380292,0.20545914,102210.0,102200.0,0.0354505]
[1747322380684,0.20545914,102210.0,102200.0,0.0314505]
[1747322380881,0.20545914,102210.0,102200.0,0.0344505]
[1747322381681,0.20545914,102210.0,102200.0,0.0364505]
[1747322382483,0.20545914,102210.0,102200.0,0.0210505]
[1747322382909,0.20545914,102210.0,102200.0,0.0371505]
[1747322383538,0.20545914,102210.0,102200.0,0.06141545]
[1747322383884,0.20545914,102210.0,102200.0,0.0371505]
[1747322385581,0.21522951,102220.0,102210.0,0.21524291]
[1747322385760,0.22501194,102220.0,102210.0,0.00978377]
[1747322385970,0.22501194,102220.0,102200.0,0.33052937]
[1747322385971,0.00978339,102210.0,102200.0,0.33052937]
[1747322386180,0.01956707,102210.0,102200.0,0.42783877]
[1747322386402,0.2250264,102210.0,102200.0,0.3499236]
[1747322386611,0.2250264,102210.0,102200.0,0.35470785]
[1747322387237,0.23480989,102210.0,102200.0,0.36449201]
[1747322387608,0.23480989,102210.0,102200.0,0.36749201]
[1747322387885,0.23480989,102210.0,102200.0,0.36949201]
[1747322388375,0.23480989,102210.0,102200.0,0.35970785]
[1747322389008,0.23480989,102210.0,102200.0,0.0373505]
[1747322389225,0.21524301,102210.0,102200.0,0.0373505]
[1747322391380,0.21524301,102210.0,102200.0,0.24282994]
[1747322391521,0.21524301,102210.0,102200.0,0.26239873]
[1747322391735,0.01956707,102210.0,102200.0,0.27218279]
[1747322392133,0.21524263,102210.0,102200.0,0.27218279]
[1747322392339,0.21524263,102210.0,102200.0,0.26239873]
[1747322392520,0.21524263,102210.0,102200.0,0.24282994]
[1747322392722,0.21524263,102210.0,102200.0,0.25261458]
[1747322392982,0.21524263,102210.0,102200.0,0.26239912]
[1747322393309,0.21524263,102210.0,102200.0,0.25261458]
[1747322393459,0.21524263,102210.0,102200.0,0.26239912]
[1747322394191,0.21524263,102210.0,102200.0,0.27218356]
[1747322394574,0.20545924,102210.0,102200.0,0.0373505]
[1747322394759,0.20545924,102210.0,102200.0,0.04713523]
[1747322394966,0.20545924,102210.0,102200.0,0.0373505]
[1747322396080,0.20545924,102210.0,102200.0,0.09759239]
[1747322396674,0.20545924,102210.0,102200.0,0.2932871]
[1747322396880,0.20545924,102210.0,102200.0,0.30307174]
[1747322397799,0.20545924,102210.0,102200.0,0.31285618]
[1747322398011,0.20545924,102210.0,102200.0,0.31285628]
[1747322398211,0.21524263,102210.0,102200.0,0.33264063]
[1747322398415,0.21524263,102210.0,102200.0,0.32285628]
[1747322400775,0.19578122,102230.0,102220.0,0.0323]
[1747322400910,0.22512613,102230.0,102220.0,0.25368631]
[1747322401115,0.21534475,102230.0,102220.0,0.03846502]
[1747322402696,0.21734475,102230.0,102220.0,0.03846502]
[1747322403133,0.21534475,102230.0,102220.0,0.04046502]
[1747322403552,0.21534475,102230.0,102220.0,0.04146502]
[1747322405183,0.21534475,102230.0,102220.0,0.24690416]
[1747322405374,0.21534475,102230.0,102220.0,0.04146502]
[1747322405903,0.20556308,102230.0,102220.0,0.04146502]
[1747322406922,0.20556308,102230.0,102220.0,0.0353]
[1747322408046,0.20556308,102230.0,102220.0,0.24073924]
[1747322408047,0.00992551,102230.0,102220.0,0.24073924]
[1747322408310,0.23490761,102230.0,102220.0,0.26030458]
[1747322408532,0.22512632,102230.0,102220.0,0.26030458]
[1747322408759,0.21534475,102230.0,102220.0,0.26030458]
[1747322409186,0.21534475,102230.0,102220.0,0.24073924]
[1747322409601,0.21534475,102230.0,102220.0,0.25052177]
[1747322409812,0.00992532,102230.0,102220.0,0.3576136]
[1747322410017,0.00992503,102230.0,102220.0,0.36739575]
[1747322410229,0.00014394,102230.0,102220.0,0.71212027]
[1747322410434,0.03926899,102230.0,102220.0,0.71212027]
[1747322410869,0.00992494,102230.0,102220.0,0.71212027]
[1747322411082,0.03926899,102230.0,102220.0,0.71212027]
[1747322411227,0.03926899,102230.0,102220.0,0.36739575]
[1747322411435,0.04905066,102230.0,102220.0,0.36739575]
[1747322411947,0.03926899,102230.0,102220.0,1.05212027]
[1747322412149,0.03926899,102230.0,102220.0,0.70739575]
[1747322412622,0.04905066,102230.0,102220.0,0.70739575]
[1747322412834,0.03926899,102230.0,102220.0,0.70739575]
[1747322413247,0.02948742,102230.0,102220.0,0.70739575]
[1747322413463,0.04905057,102230.0,102220.0,0.70739575]
[1747322414580,0.04905047,102230.0,102220.0,0.70739575]
[1747322415550,0.0392689,102230.0,102220.0,0.70739575]
[1747322415785,0.00014394,102230.0,102220.0,1.05212027]
[1747322416016,0.00014394,102230.0,102220.0,1.1312366]
[1747322416242,0.00014394,102230.0,102220.0,1.47596112]
[1747322416431,0.00992513,102230.0,102220.0,1.1312366]
[1747322416644,0.00014394,102230.0,102220.0,1.1302366]
[1747322416842,0.01970623,102230.0,102220.0,1.1282366]
[1747322417054,0.03926928,102230.0,102220.0,1.1282366]
[1747322417270,0.22512603,102230.0,102220.0,1.08434854]
[1747322417491,0.22512603,102230.0,102220.0,1.11491341]
[1747322417708,0.22512603,102230.0,102220.0,1.1344778]
[1747322417943,0.02948875,102230.0,102220.0,1.1344778]
[1747322418988,0.01970699,102230.0,102220.0,0.7894778]
[1747322419423,0.01970699,102230.0,102220.0,0.7934778]
[1747322419949,0.22512603,102230.0,102220.0,0.76413107]
[1747322420614,0.23490789,102230.0,102220.0,0.77391341]
[1747322420812,0.23490789,102230.0,102220.0,0.36461341]
[1747322421039,0.23490789,102230.0,102220.0,0.3646135]
[1747322421455,0.22066308,102230.0,102220.0,0.01]
[1747322421615,0.23606308,102230.0,102220.0,0.01]
[1747322423141,0.23606308,102230.0,102220.0,0.006]
[1747322423384,0.23606308,102230.0,102220.0,0.003]
[1747322423794,0.57606308,102230.0,102220.0,0.003]
[1747322424011,0.65323123,102230.0,102220.0,0.006]
[1747322424214,0.57606308,102230.0,102220.0,0.006]
[1747322426609,0.67337248,102230.0,102220.0,0.006]
[1747322427135,0.68791333,102230.0,102220.0,0.006]
[1747322427337,5.74791333,102230.0,102220.0,0.006]
[1747322427539,5.85522273,102230.0,102220.0,0.006]
[1747322428372,5.85522273,102230.0,102220.0,0.003]
[1747322428513,5.85822273,102230.0,102220.0,0.003]
[1747322428916,0.58684243,102210.0,102200.0,0.0109505]
[1747322429171,0.68415183,102210.0,102200.0,0.0109505]
[1747322430206,0.68515183,102210.0,102200.0,0.0109505]
[1747322432364,0.57254243,102210.0,102200.0,0.0109505]
[1747322432563,0.55624243,102210.0,102200.0,0.0109505]
[1747322435345,0.68535183,102210.0,102200.0,0.0109505]
[1747322442945,0.74408183,102210.0,102200.0,0.0109505]
[1747322445428,0.55624243,102210.0,102200.0,0.0109505]
[1747322445604,0.55624243,102210.0,102200.0,0.0426505]
[1747322446822,0.55624243,102210.0,102200.0,0.0273505]
[1747322447065,0.55624243,102210.0,102200.0,0.0109505]
[1747322448491,0.001,102210.0,102200.0,0.31536096]
[1747322448676,0.04013318,102210.0,102200.0,0.33492995]
[1747322448874,0.23580874,102210.0,102200.0,0.33493014]
[1747322449074,0.22602583,102210.0,102200.0,0.33493023]
[1747322449279,0.22602583,102210.0,102200.0,0.35449912]
[1747322449601,0.19567556,102210.0,102200.0,0.0417505]
[1747322449837,0.19567556,102210.0,102200.0,0.0447505]
[1747322450615,0.19567556,102210.0,102200.0,0.27721171]
[1747322450849,0.19567556,102210.0,102200.0,0.28021171]
[1747322451387,0.19567556,102210.0,102200.0,0.2802119]
[1747322451678,0.19567556,102210.0,102200.0,0.28999654]
[1747322454140,0.20545914,102210.0,102200.0,0.28999654]
[1747322454344,0.01956639,102210.0,102200.0,0.30956533]
[1747322454520,0.02934978,102210.0,102200.0,0.31934949]
[1747322454771,0.21534389,102230.0,102220.0,0.19565642]
[1747322454976,0.0195642,102220.0,102210.0,0.22502002]
[1747322455185,0.0195642,102220.0,102210.0,0.20545372]
[1747322455391,0.35956467,102220.0,102210.0,0.25732097]
[1747322455607,0.3595642,102220.0,102210.0,0.26710407]
[1747322455816,0.3595642,102220.0,102210.0,0.31572503]
[1747322455817,0.35956411,102220.0,102210.0,0.31572503]
[1747322456027,0.37912907,102220.0,102210.0,0.31572503]
[1747322457151,0.5650041,102220.0,102210.0,0.28637506]
[1747322457374,0.5650041,102220.0,102210.0,0.29615855]
[1747322457555,0.5650041,102220.0,102210.0,0.29715855]
[1747322457765,0.5650041,102220.0,102210.0,0.30894194]
[1747322457972,0.57478692,102220.0,102210.0,0.29915855]
[1747322458147,0.56500458,102220.0,102210.0,0.29915855]
[1747322458371,0.55522196,102220.0,102210.0,0.29915855]
[1747322459438,0.35956554,102220.0,102210.0,0.31872504]
[1747322459698,0.56512603,102230.0,102220.0,0.24722177]
[1747322459902,0.56512651,102230.0,102220.0,0.2644212]
[1747322460279,0.20556251,102230.0,102220.0,0.27420382]
[1747322460479,0.20543914,102220.0,102210.0,0.02818377]
[1747322460740,0.20543914,102220.0,102210.0,0.22997556]
[1747322460915,0.20543914,102220.0,102210.0,0.23775924]
[1747322461172,0.20543914,102220.0,102210.0,0.0323]
[1747322461378,0.20543914,102220.0,102210.0,0.22797556]
[1747322461538,0.21522167,102220.0,102210.0,0.30367116]
[1747322461710,0.21522167,102220.0,102210.0,0.30467116]
[1747322461911,0.20543914,102220.0,102210.0,0.0353]
[1747322462324,0.20543914,102220.0,102210.0,0.23097556]
[1747322462556,0.20543914,102220.0,102210.0,0.0353]
[1747322462950,0.20543914,102220.0,102210.0,0.23097556]
[1747322463156,0.20543914,102220.0,102210.0,0.24075924]
[1747322463734,0.20543914,102220.0,102210.0,0.0353]
[1747322464169,0.20543914,102220.0,102210.0,0.23097556]
[1747322464368,0.20543914,102220.0,102210.0,0.24075924]
[1747322464580,0.20543914,102220.0,102210.0,0.28936057]
[1747322465007,0.20543914,102220.0,102210.0,0.0353]
[1747322465213,0.21065642,102220.0,102210.0,0.003]
[1747322465420,0.66346582,102220.0,102210.0,0.003]
[1747322466697,0.66346582,102220.0,102210.0,0.23067556]
[1747322466698,0.53565642,102220.0,102210.0,0.23067556]
[1747322466908,0.54543914,102220.0,102210.0,0.25024263]
[1747322467109,0.55522157,102220.0,102210.0,0.24045924]
[1747322467318,0.54543914,102220.0,102210.0,0.035]
[1747322469940,0.00978196,102220.0,102210.0,0.57274958]
[1747322470157,0.03927023,102230.0,102220.0,0.22500381]
[1747322470361,0.03927023,102230.0,102220.0,0.21522176]
[1747322470362,0.23490808,102230.0,102220.0,0.21522176]
[1747322470583,0.00014394,102230.0,102220.0,0.61081086]
[1747322470797,0.00014394,102230.0,102220.0,0.70812026]
[1747322471211,0.01970632,102230.0,102220.0,0.70812026]
[1747322471431,0.00114394,102230.0,102220.0,0.70812026]
[1747322472079,0.00114394,102230.0,102220.0,0.71112026]
[1747322472293,0.01092503,102230.0,102220.0,0.71112026]
[1747322472718,0.00114394,102230.0,102220.0,0.80357686]
[1747322472921,0.00114394,102230.0,102220.0,1.14357686]
[1747322473116,0.00014394,102230.0,102220.0,1.14357686]
[1747322473508,0.00014394,102230.0,102220.0,1.14557686]
[1747322473943,0.00014394,102230.0,102220.0,1.49756178]
[1747322474155,0.00014394,102230.0,102220.0,1.50756178]
[1747322474493,0.00014394,102230.0,102220.0,1.42964603]
[1747322474946,0.00014394,102230.0,102220.0,1.41964603]
[1747322475123,0.00014394,102230.0,102220.0,1.42664603]
[1747322475852,0.00014394,102230.0,102220.0,1.43664603]
[1747322476279,0.00014394,102230.0,102220.0,1.09892151]
[1747322476413,0.00014394,102230.0,102220.0,1.44364603]
[1747322477273,0.00014394,102230.0,102220.0,1.09892151]
[1747322477478,0.00014394,102230.0,102220.0,1.44364603]
[1747322477814,0.00014394,102230.0,102220.0,1.85294603]
[1747322480088,0.02948771,102230.0,102220.0,0.81368075]
[1747322480303,0.21534437,102230.0,102220.0,0.1376094]
[1747322480496,0.21534437,102230.0,102220.0,0.1213094]
[1747322480703,0.21534437,102230.0,102220.0,0.024]
[1747322480827,0.21534437,102230.0,102220.0,0.05365632]
[1747322481236,0.21534437,102230.0,102220.0,0.25909546]
[1747322481715,0.21534437,102230.0,102220.0,0.26887808]
[1747322482138,0.22512613,102230.0,102220.0,0.28844285]
[1747322482299,0.00014394,102230.0,102220.0,0.77175892]
[1747322482711,0.00992513,102230.0,102220.0,0.76431741]
[1747322482924,0.01970661,102230.0,102220.0,0.76431741]
[1747322483180,0.01970661,102230.0,102220.0,0.76375892]
[1747322483355,0.03926985,102230.0,102220.0,0.4240344]
[1747322484186,0.03926937,102230.0,102220.0,0.4240344]
[1747322484545,0.0294877,102230.0,102220.0,0.4240344]
[1747322484960,0.03926908,102230.0,102220.0,0.4240344]
[1747322485180,0.00992503,102230.0,102220.0,0.76875892]
[1747322485401,0.00014394,102230.0,102220.0,0.76875892]
[1747322485813,0.00992494,102230.0,102220.0,0.76875892]
[1747322486233,0.01970613,102230.0,102220.0,0.4240344]
[1747322486644,0.02948751,102230.0,102220.0,0.4240344]
[1747322487461,0.01970613,102230.0,102220.0,0.4240344]
[1747322487613,0.01970613,102230.0,102220.0,0.76875892]
[1747322487816,0.02948751,102230.0,102220.0,0.4240344]
[1747322488886,0.01970613,102230.0,102220.0,0.4240344]
[1747322489231,0.02948751,102230.0,102220.0,0.4240344]
[1747322489402,0.00014394,102230.0,102220.0,0.76875892]
[1747322489605,0.00014394,102230.0,102220.0,0.78329977]
[1747322491153,0.00014394,102230.0,102220.0,1.12329977]
[1747322492265,0.00992494,102230.0,102220.0,1.12329977]
[1747322492578,0.00014394,102230.0,102220.0,1.12329977]
[1747322493418,0.00014394,102230.0,102220.0,1.10875892]
[1747322493624,0.00992503,102230.0,102220.0,1.10875892]
[1747322493834,0.20556231,102230.0,102220.0,0.38490486]
[1747322494037,0.21534446,102230.0,102220.0,0.14796572]
[1747322494209,0.23124446,102230.0,102220.0,0.05065632]
[1747322494477,0.24774446,102230.0,102220.0,0.05065632]
[1747322494849,0.23124446,102230.0,102220.0,0.06043914]
[1747322495073,0.23124446,102230.0,102220.0,0.05065632]
[1747322495278,0.23124446,102230.0,102220.0,0.25609546]
[1747322495936,0.23124446,102230.0,102220.0,0.05065632]
[1747322496087,0.24724446,102230.0,102220.0,0.05065632]
[1747322496295,0.24724446,102230.0,102220.0,0.021]
[1747322496874,0.24724446,102230.0,102220.0,0.22043904]
[1747322497078,0.21534446,102230.0,102220.0,0.21543904]